Cogmind - Beta 13 X2 @@@ ROGUE MODE // 2024.02.03 @ 00:43:31 Player: Minty Result: Destroyed by G-47 Trooper with Particle Gun Performance ------------- Evolutions (2) 1000 Regions Visited (6) 1200 Robots Destroyed (30) 150 Value Destroyed (904) 904 Prototype IDs (28) 560 Alien Tech Used (0) 0 Bonus (401) 401 TOTAL SCORE: 4215 Bonus ------- High Alert Combat Kills 101 Aligned with FarCom 300 Cogmind --------- Core Integrity 0/550 Matter 178/300 Energy 99/100 System Corruption 4% Temperature Cool (9) Movement Core (50) Location -8/Storage Parts ------- > --- POWER (1) -------- (None) > --- PROPULSION (4) --- (None) > --- UTILITY (3) ------ Launcher Guidance Computer Core Analyzer > --- WEAPON (3) ------- (None) > --- INVENTORY (5) ---- Fission Core Trap Reconfigurator Thief Drone Bay (2/3) Power Maul Peak State ------------ > --- POWER ------------ Light Angular Momentum Engine > --- PROPULSION ------- Aerolev Unit Aerolev Unit Combat Airjet Combat Airjet > --- UTILITY ---------- Medium Storage Unit Launcher Guidance Computer Reaction Control System > --- WEAPON ----------- Heavy Laser Mini Grenade Launcher Mini Grenade Launcher > --- INVENTORY -------- Reinforced Deuterium Engine Reinforced Deuterium Engine Fission Core Aerolev Unit Advanced Heat Sink Core Analyzer Trap Reconfigurator Thief Drone Bay Heavy Laser Power Maul [Rating: 44] Favorites ----------- Power Light Angular Momentum Engine Engine Light Angular Momentum Engine Propulsion Combat Airjet Leg Aluminum Leg Hover Unit Combat Airjet Flight Unit Surge Thruster Utility Medium Storage Unit Device Sensor Array Storage Medium Storage Unit Processor Launcher Guidance Computer Hackware Hacking Suite Protection Hardened Light Armor Plating Weapon Medium Laser Energy Gun Medium Laser Ballistic Gun Assault Rifle Launcher Mini Grenade Launcher Build | -11 -10 -10 -10 -9 -8 -8 ------- Run | Yrd Mat Min Exi Min Mat Sto Slots Evolved 4 | . . . . . 4 . Power . | . . . . . . . Propulsion 2 | . . . . . 2 . Utility 1 | . . . . . 1 . Weapon 1 | . . . . . 1 . Parts Attached 41 | . 6 10 2 5 17 1 Power 4 | . 1 2 . . 1 . Engine 4 | . 1 2 . . 1 . Core . | . . . . . . . Reactor . | . . . . . . . Propulsion 15 | . 2 6 . . 7 . Treads . | . . . . . . . Leg 3 | . . 3 . . . . Wheel . | . . . . . . . Hover 10 | . 2 3 . . 5 . Flight 2 | . . . . . 2 . Utility 12 | . 2 1 2 2 4 1 Device 4 | . 1 . . 1 1 1 Storage 1 | . . . 1 . . . Processor 5 | . 1 . 1 1 2 . Hackware 1 | . . . . . 1 . Protection 1 | . . 1 . . . . Artifact . | . . . . . . . Weapon 10 | . 1 1 . 3 5 . Energy Gun 7 | . 1 1 . 1 4 . Energy Cannon . | . . . . . . . Ballistic Gun . | . . . . . . . Ballistic Cannon . | . . . . . . . Launcher 3 | . . . . 2 1 . Special Weapon . | . . . . . . . Impact Weapon . | . . . . . . . Slashing Weapon . | . . . . . . . Piercing Weapon . | . . . . . . . Special Melee Weapon . | . . . . . . . Unidentified Prototypes 3 | . . . . 1 2 . Corrupted Parts 1 | . . . . . 1 . System Corruption 4 | . . . . . 4 . Parts Lost 17 | . . 2 . . 15 . Power 1 | . . . . . 1 . Propulsion 8 | . . 1 . . 7 . Utility 1 | . . . . . 1 . Weapon 7 | . . 1 . . 6 . Highest Loss Streak 13 | . . 2 . . 13 . To Critical Strikes . | . . . . . . . Average Slot Usage (%) 91 | . 91 97 100 99 81 21 Engine 12 | . 14 14 14 14 8 . Leg 4 | . 16 4 . . . . Hover 22 | . 11 23 28 28 27 . Device 4 | . . 14 4 . 1 3 Storage 8 | . 13 . 9 14 9 . Processor 8 | . 6 2 9 14 10 18 Protection 3 | . . 11 4 . . . Energy Gun 19 | . 23 25 28 14 5 . Ballistic Gun 1 | . 4 . . . . . Launcher 5 | . . . . 12 16 . Naked Turns . | . . . . . . . Heaviest Build 29 | 14 14 20 29 24 26 4 Greatest Support 40 | 20 20 35 24 24 40 3 Greatest Overweight (x) 4 | . 4 1 1 . 3 1 Average Overweight (x) . | . . . . . . . Largest Inventory Capacity 10 | . 8 5 10 10 10 5 Average Capacity 7 | . 7 5 8 10 9 5 Most Carried 10 | . 8 5 9 10 10 5 Average Carried 7 | . 7 4 5 9 9 4 Final Capacity 10 | 8 5 5 10 10 5 5 Final Carried 10 | 6 5 5 9 10 5 4 Class Distribution -------------------- 71% | Scavenger-Mutant 20% | Mutant 8% | Scavenger-Skirmisher Dominant Class ---------------- Mutant | -10/Materials Scavenger-Mutant | -10/Mines Scavenger-Mutant | -10/Exiles Scavenger-Mutant | -9/Mines Scavenger-Skirmisher | -8/Materials Mutant | -8/Storage Resources | -11 -10 -10 -10 -9 -8 -8 ----------- Run | Yrd Mat Min Exi Min Mat Sto Matter Collected 675 | 196 70 90 . 80 239 . Remotely . | . . . . . . . Salvage Created 751 | . 148 39 . 84 480 . Parts 59 | . 19 . . 4 36 . Haulers Intercepted 1 | . . . . . 1 . Recyclers Shooed 2 | . 1 . . . 1 . Parts Field Recycled . | . . . . . . . Retrieved Matter . | . . . . . . . Parts Self-Destructed . | . . . . . . . Prevented . | . . . . . . . Kills | -11 -10 -10 -10 -9 -8 -8 ------- Run | Yrd Mat Min Exi Min Mat Sto Combat Hostiles Destroyed 23 | . 2 2 . 2 17 . Guns 7 | . 2 2 . . 3 . AOE 16 | . . . . 2 14 . Classes Destroyed 9 | . 4 1 . . 4 . Builder 2 | . 1 . . . 1 . Hauler 1 | . . . . . 1 . Operator 3 | . 1 . . . 2 . Watcher 3 | . 3 . . . . . Swarmer 3 | . . . . . 3 . Cutter 3 | . . . . . 3 . Grunt 13 | . 2 . . 2 9 . Sentry 2 | . . . . . 2 . Assembled 2 | . . 2 . . . . Best Kill Streak 8 | . 4 2 . 2 8 . Combat Bots Only 6 | . 1 2 . 2 6 . Max Kills in Single Turn 3 | . 1 1 . 2 3 . Gunslinging . | . . . . . . . Exploded 3 | . . . . 2 3 . Melee . | . . . . . . . Uniques/NPCs Destroyed . | . . . . . . . Combat | -11 -10 -10 -10 -9 -8 -8 -------- Run | Yrd Mat Min Exi Min Mat Sto Hostile Shots Fired 160 | . 8 16 . 2 131 3 Missed 49 | . 4 2 . . 43 . Damage Taken 1889 | . 46 225 . 64 1505 49 Core 591 | . . 32 . . 510 49 Absorbed by Shields . | . . . . . . . Core Remaining (%) 93 | 100 . . . 87 . . Volleys Fired 64 | . 20 9 . 3 32 . Largest 3 | . 2 2 . 2 3 . Hottest 129 | . 100 115 . 85 129 . Shots Fired 118 | . 40 17 . 4 57 . Gun 92 | . 40 17 . 3 32 . Cannon . | . . . . . . . Launcher 26 | . . . . 1 25 . Special . | . . . . . . . Kinetic 2 | . 2 . . . . . Thermal 68 | . 38 17 . . 13 . Explosive 26 | . . . . 1 25 . Electromagnetic 22 | . . . . 3 19 . Robot Hit Streak 16 | . 7 1 . 2 16 . Robot Miss Streak 8 | . 2 6 . 2 8 . Penetration Max . | . . . . . . . Secondary Targets 2 | . . . . . 2 . Max Gunslinging Chain 1 | . . . . . 1 . Shots Hit Robots 63 | . 25 4 . 2 32 . Core Hits 60 | . 11 3 . 3 43 . Critical Kills . | . . . . . . . Critical Parts Destroyed . | . . . . . . . Critical Strikes 2 | . . 2 . . . . Burn 2 | . . 2 . . . . Melee Attacks . | . . . . . . . Impact . | . . . . . . . Slashing . | . . . . . . . Piercing . | . . . . . . . Sneak Attacks . | . . . . . . . Combat Hostiles . | . . . . . . . Follow-up Attacks . | . . . . . . . Damage Inflicted 2296 | . 309 91 . 102 1794 . Guns 746 | . 309 91 . 12 334 . Cannons . | . . . . . . . Explosions 1550 | . . . . 90 1460 . Melee . | . . . . . . . Ramming . | . . . . . . . Kinetic 10 | . 10 . . . . . Thermal 592 | . 299 91 . . 202 . Explosive 1442 | . . . . 90 1352 . Electromagnetic 252 | . . . . 12 240 . Impact . | . . . . . . . Slashing . | . . . . . . . Piercing . | . . . . . . . Highest Corruption 4 | . . . . . 4 4 Average Corruption 4 | . . . . . 4 4 Corruption Purged . | . . . . . . . Corruption Blocked . | . . . . . . . Effects 8 | . . . . . 8 . Message Errors 2 | . . . . . 2 . Matter Fused 1 | . . . . . 1 . Energy Discharges 3 | . . . . . 3 . Data Loss (major) 2 | . . . . . 2 . Overload Shots . | . . . . . . . Overflow Damage 12 | . . . . . 12 . Projectiles . | . . . . . . . Explosions 12 | . . . . . 12 . Melee . | . . . . . . . Knockbacks . | . . . . . . . Impact . | . . . . . . . Kinetic . | . . . . . . . Secondary . | . . . . . . . Self-Inflicted Damage 140 | . . . . . 140 . Shots 3 | . . . . . 3 . Rammed . | . . . . . . . Targets Rammed . | . . . . . . . Kicked . | . . . . . . . Crushed . | . . . . . . . Highest Temperature 337 | . 180 306 . 66 337 . Average Temperature 87 | . 57 125 . 32 94 . Received Heat Transfer 780 | . 24 207 . 18 504 27 Effects 3 | . . 2 . . 1 . Interference 2 | . . 2 . . . . Damage (minor) 1 | . . . . . 1 . Siege Activations . | . . . . . . . Robots Corrupted . | . . . . . . . Combat Hostiles . | . . . . . . . Parts Fried . | . . . . . . . Impact Corruptions . | . . . . . . . Robots Melted . | . . . . . . . Combat Hostiles . | . . . . . . . Parts Melted 2 | . 1 . . . 1 . Heat Transferred 1580 | . 888 407 . . 285 . Parts Sabotaged . | . . . . . . . Parts Stolen . | . . . . . . . Parts Stripped . | . . . . . . . Power Chain Reactions 1 | . . . . . 1 . Missiles Intercepted . | . . . . . . . Alert | -11 -10 -10 -10 -9 -8 -8 ------- Run | Yrd Mat Min Exi Min Mat Sto Peak Influence 708 | . 111 58 . 57 708 284 Initial 277 | . . 43 . . 22 277 Average 116 | . 37 6 . 21 400 278 Maximum Alert Level 3 | . . . . . 3 1 Low Security (%) 80 | . 100 100 . 100 28 . Level 1 7 | . . . . . 19 100 Level 2 11 | . . . . . 50 . Level 3 . | . . . . . 1 . Level 4 . | . . . . . . . Level 5 . | . . . . . . . High Security . | . . . . . . . Max Security . | . . . . . . . Squads Dispatched 10 | . 1 . . . 8 1 Investigation 2 | . . . . . 2 . Extermination . | . . . . . . . Reinforcement 6 | . 1 . . . 4 1 Assault . | . . . . . . . Garrison 2 | . . . . . 2 . Intercept . | . . . . . . . Searches Triggered . | . . . . . . . Construction Impeded 1 | . . . . . 1 . Haulers Reinforced . | . . . . . . . Active Scanning Responses . | . . . . . . . Cargo Convoy Interrupts . | . . . . . . . Stealth | -11 -10 -10 -10 -9 -8 -8 --------- Run | Yrd Mat Min Exi Min Mat Sto Distress Signals 1 | . . . . . . 1 Communications Jammed . | . . . . . . . Distress Signals . | . . . . . . . Times Spotted 44 | . 8 7 . 2 25 2 Peak Tracking Total 8 | . 2 5 . 2 8 8 Tactical Retreats 1 | . . . . . 1 . Traps | -11 -10 -10 -10 -9 -8 -8 ------- Run | Yrd Mat Min Exi Min Mat Sto Traps Triggered 2 | . . . . 1 1 . Indirectly . | . . . . . . . Trap Hack Attempts . | . . . . . . . Triggered . | . . . . . . . Disarmed . | . . . . . . . Reprogrammed . | . . . . . . . Reused . | . . . . . . . Traps Extracted . | . . . . . . . Installed . | . . . . . . . Triggered . | . . . . . . . Machines | -11 -10 -10 -10 -9 -8 -8 ---------- Run | Yrd Mat Min Exi Min Mat Sto Machines Disabled 5 | . . . . . 5 . Max in Single Turn 2 | . . . . . 2 . Machines Repaired . | . . . . . . . Machines Dismantled . | . . . . . . . Machines Sabotaged . | . . . . . . . Overloaded Fab Kills . | . . . . . . . Hacking | -11 -10 -10 -10 -9 -8 -8 --------- Run | Yrd Mat Min Exi Min Mat Sto Machines Accessed 10 | . 1 . 2 2 4 1 Terminals 6 | . 1 . . . 4 1 Fabricators . | . . . . . . . Repair Stations . | . . . . . . . Recycling Units . | . . . . . . . Scanalyzers . | . . . . . . . Garrison Access . | . . . . . . . Total Hacks 25 | . 3 . 2 2 14 4 Successful 13 | . 1 . 2 2 7 1 Failed 12 | . 2 . . . 7 3 Catastrophic 4 | . 1 . . . 2 1 Database Lockouts . | . . . . . . . Manual 16 | . 3 . 1 . 12 . Terminals 21 | . 3 . . . 14 4 Fabricators . | . . . . . . . Repair Stations . | . . . . . . . Recycling Units . | . . . . . . . Scanalyzers . | . . . . . . . Garrison Access . | . . . . . . . Terminal Hacks 9 | . 1 . 2 2 3 1 Record 1 | . . . 1 . . . Prototype ID Bank 1 | . 1 . . . . . Open Door 3 | . . . . 2 . 1 Locate Traps 2 | . . . . . 2 . Zone Layout 1 | . . . . . 1 . Derelict Proto ID Bank 1 | . . . 1 . . . Fabricator Hacks . | . . . . . . . Repair Station Hacks . | . . . . . . . Recycling Unit Hacks . | . . . . . . . Scanalyzer . | . . . . . . . Garrison Access Hacks . | . . . . . . . Unauthorized Hacks 4 | . . . . . 4 . Terminals 4 | . . . . . 4 . Assimilate 1 | . . . . . 1 . Botnet 3 | . . . . . 3 . Fabricators . | . . . . . . . Repair Stations . | . . . . . . . Recycling Units . | . . . . . . . Scanalyzers . | . . . . . . . Garrison Access . | . . . . . . . Data Cores Recovered . | . . . . . . . Used . | . . . . . . . Hacking Detections 5 | . 1 . . . 3 1 Full Trace Events 2 | . . . . . 2 . Feedback Events . | . . . . . . . Feedback Blocked . | . . . . . . . Robot Schematics Acquired . | . . . . . . . Robots Built . | . . . . . . . Authchips . | . . . . . . . Time . | . . . . . . . Total Robot Build Rating . | . . . . . . . Part Schematics Acquired . | . . . . . . . Parts Built . | . . . . . . . Authchips . | . . . . . . . Time . | . . . . . . . Total Part Build Rating . | . . . . . . . Parts Repaired . | . . . . . . . Time . | . . . . . . . Parts Recycled . | . . . . . . . Recycled Matter . | . . . . . . . Retrieved Matter . | . . . . . . . Retrieved Components . | . . . . . . . Parts Scanalyzed . | . . . . . . . Part Schematics Acquired . | . . . . . . . Parts Damaged . | . . . . . . . Bothacking | -11 -10 -10 -10 -9 -8 -8 ------------ Run | Yrd Mat Min Exi Min Mat Sto Used RIF Installer . | . . . . . . . Robots Hacked . | . . . . . . . Non-combat . | . . . . . . . Combat . | . . . . . . . Robot Hacks Applied . | . . . . . . . Relay Couplers Released . | . . . . . . . Fabnet Peak Effective % . | . . . . . . . Robots Rewired . | . . . . . . . Allies Hacked . | . . . . . . . Hacks Repelled . | . . . . . . . Allies | -11 -10 -10 -10 -9 -8 -8 -------- Run | Yrd Mat Min Exi Min Mat Sto Total Allies 2 | . . 2 . . . . Largest Group 2 | . . 2 . . . . Highest-Rated Group 42 | . . 42 . . . . Highest-Rated Ally 31 | . . 31 . . . . Total Orders 2 | . . . . . . 2 ROAM 1 | . . . . . . 1 EXPLORE 1 | . . . . . . 1 Ally Attacks 12 | . . 4 . . . 8 Total Damage 63 | . . 42 . . . 21 Kills 1 | . . 1 . . . . Allies Corrupted . | . . . . . . . Allies Melted . | . . . . . . . Intel | -11 -10 -10 -10 -9 -8 -8 ------- Run | Yrd Mat Min Exi Min Mat Sto Robot Analysis Total . | . . . . . . . Derelict Logs Recovered 2 | . . 2 . . . . Drone Launches 3 | . . . . . . 3 Drone Recoveries 2 | . . . . . . 2 Exploration | -11 -10 -10 -10 -9 -8 -8 ------------- Run | Yrd Mat Min Exi Min Mat Sto Turns Passed 1641 | . 363 412 266 242 315 43 Spaces Moved 1708 | 1 288 467 330 280 304 38 Core 52 | . 1 . . . 13 38 Treads . | . . . . . . . Legs 180 | 1 140 39 . . . . Wheels . | . . . . . . . Hover 1476 | . 147 428 330 280 291 . Flight . | . . . . . . . Fastest Speed 50 | 120 56 56 77 77 50 50 Average Speed 76 | 120 92 76 77 77 63 63 Slowest Speed 250 | 120 250 150 147 77 200 100 Overloaded Moves . | . . . . . . . Propulsion Burnouts . | . . . . . . . Robots Hopped . | . . . . . . . Cave-ins Triggered . | . . . . . . . Exploration Rate (%) 44 | 2 44 85 60 58 39 25 Regions Visited 6 Branch Regions 4 Pre-discovered Areas 3 | . . 2 1 . . . Known Exits Taken 1 | . 1 . . . . . Unknown Exits Taken 5 | 1 . 1 1 1 1 . Scrap Searched 5 | . . 3 . 2 . . Spaces Dug . | . . . . . . . Terrain Destroyed 212 | . . . . 7 205 . Melee . | . . . . . . . Projectile . | . . . . . . . AOE 212 | . . . . 7 205 . Terrain Rammed . | . . . . . . . Walls Destroyed . | . . . . . . . Machines Disabled . | . . . . . . . Actions | -11 -10 -10 -10 -9 -8 -8 --------- Run | Yrd Mat Min Exi Min Mat Sto Total 1931 | . 348 507 341 304 373 58 Wait 41 | . 9 4 . 4 8 16 Move 1702 | . 287 466 329 279 303 38 Hop . | . . . . . . . Pick Up 32 | . 10 6 6 6 4 . Fast Attach 26 | . 6 7 1 2 10 . Attach 9 | . . 1 1 3 3 1 Detach 5 | . . 1 1 1 1 1 Swap 6 | . . 2 . . 4 . Drop 45 | . 16 10 3 6 8 2 Fire 64 | . 20 9 . 3 32 . Melee . | . . . . . . . Ram . | . . . . . . . Kick . | . . . . . . . Crush . | . . . . . . . Escape Stasis . | . . . . . . . Rewire 1 | . . 1 . . . . Trap . | . . . . . . . Miscellaneous . | . . . . . . . Route ------- -11/Scrapyard -10/Materials (discovered 2 exits: *Mat / *Min) -10/Mines -10/Exiles -9/Mines -8/Materials -8/Storage History --------- Turn | Location | Event 1 | -11/Scrapyard | Discovered new exit (range 0) 1 | -11/Scrapyard | Entered Materials 92 | -10/Materials | Discovered new exit (range 15) 269 | -10/Materials | Identified exit to Materials 289 | -10/Materials | Discovered new exit (range 16) 363 | -10/Materials | Identified exit to Mines 364 | -10/Materials | Entered Mines 365 | -10/Mines | Met a Derelict bent on vengeance 376 | -10/Mines | Learned location of Zion (-7) 391 | -10/Mines | Assembled infested the area 448 | -10/Mines | Met 8R-AWN 553 | -10/Mines | Build established: Scavenger-Mutant 773 | -10/Mines | Discovered new exit (range 5) 776 | -10/Mines | Entered Exiles 796 | -10/Exiles | Welcomed by 8R-AWN 808 | -10/Exiles | Met EX-HEX 837 | -10/Exiles | Met EX-DEC 900 | -10/Exiles | Met EX-BIN 911 | -10/Exiles | Aligned with FarCom system 912 | -10/Exiles | Given EX-Vault access code 933 | -10/Exiles | Opened EX-Vault 942 | -10/Exiles | Found Trap Reconfigurator 974 | -10/Exiles | Warned to stay clear of 0b10 Research branches 1007 | -10/Exiles | Learned about 8R-AWN's background 1033 | -10/Exiles | Discovered new exit (range 14) 1042 | -10/Exiles | Left Exiles lab with Trap Reconfigurator 1042 | -10/Exiles | Entered Mines 1096 | -9/Mines | Met a Derelict who couldn't figure out how to use a Trap Extractor 1219 | -9/Mines | Found the Drone Emporium 1221 | -9/Mines | Found Prototype Device 1221 | -9/Mines | Identified Thief Drone Bay 1272 | -9/Mines | Discovered new exit (range 11) 1284 | -9/Mines | Entered Materials 1284 | -8/Materials | Evolved 4 slots: Propulsion x2, Utility x1, Weapon x1 1470 | -8/Materials | Garrison activated, responded to threat 1525 | -8/Materials | Discovered new exit (range 14) 1581 | -8/Materials | Core integrity fell below 50% 1594 | -8/Materials | Core integrity fell below 20% 1599 | -8/Materials | Entered Storage 1609 | -8/Storage | Lost 13 parts (1p7n1u4w) 1642 | -8/Storage | Destroyed by G-47 Trooper with Particle Gun Last Messages --------------- 01629_ U-05 Engineer destroyed. 01629_ K-01 Serf destroyed. 01630_ W-25 Informer sends out distress signal. 01630_ R-06 Scavenger collects Terrain Scan Processor. 01631_ K-01 Serf collects debris. 01631_ O-16 Technician: "IFF HANDSHAKE FAILED. SECURING TERMINAL." 01633_ S-10 Pest Lgt. Assault Rifle ripped off. 01634_ Thief Drone delivers Lgt. Nuclear Core. 01634_ Thief Drone retrieved by Thief Drone Bay. 01634_ Thief Drone destroyed. 01635_ K-01 Serf collects debris. 01636_ K-01 Serf destroyed. 01637_ ALERT: Hostiles spotted, dispatching reinforcements to Terminal S014. 01637_ R-06 Scavenger collects Terrain Scanner. 01638_ Thief Drone delivers Lgt. Assault Rifle. 01638_ Thief Drone retrieved by Thief Drone Bay. 01639_ Dropped Lgt. Nuclear Core. 01640_ Dropped Rigged Rnf. Deuterium Engine. 01640_ R-06 Scavenger collects Welding Torch. Map ----- +----------------------------------------------------+ | ???????????????????????# #??????????? | | ???????????????????????# #??????????? | | ???????????????????????# #??????????? | | ???????????????????????# #??????????? | | ???????????????????????# #??????????? | | ???????????????????????# #??????????? | | ???????????????????????# #??????????? | | ???????????????????????# #??????????? | | ???????????????????????# ######?????? | | ???????????????????????# # !!#?????? | | ???????????????????????# # !!#?????? | | ???????????????????????# + !!#?????? | | ???????????????????????# #T####?????? | | ???????????????????????# ###????????? | | ???????????????????????#u #??????????? | | ??????????????????????## ##?????????? | | #######+############### #?????????? | | =%s #?????????? | | w ! #?????????? | | %= ss #?????????? | | ####################### * #?????????? | | ??????????????????????###[##########??? | | ????????????????????????#*# #??? | | ????????????????????##### # #??? | | ??????????########### # #??? | | ?????????? @# #??? | | ????????? T + #??? | | ?????????? k k # #??? | | ??????????######/#### # #??? | | ????????????????????##!* ## #??? | | ?????????????????????#% ## #??? | | ?????????????????????# r ###########??? | | ?????????????????????#g g# #??? | | ?????????????????????# # ! #??? | | ?????????????????????# + #??? | | ?????????????????????# # "#?? | | ?????????????????????# # """ """ T#?? | | ?????????????????????# #?""" """????? | | ??????????????Y??????# a #??"" ""?????? | | ?????????????????????# #??? ?????? | | ?????????????????????# #???##???????? | | ?????????????????????# #????????????? | | ?????????????????????# #????????????? | | ?????????????????????# #????????????? | | ?????????????????????+ #????????????? | | ?????????????????????# #????????????? | | ?????????????????????# ????????????? | | ?????????????????????# #????????????? | | ?????????????????????+ #????????????? | | ?????????????????????##+##????????????? | +----------------------------------------------------+ Best States ------------- Heat Dissipation 31 Energy Generation 18 Energy Capacity 250 Matter Stores 300 Matter Capacity 300 Sight Range 16 Robot Scan Range 14 Terrain Scan Density 10 Armor Coverage 150 Evasion (%) 62 Targeting Accuracy 6 Launcher Accuracy 20 Core Analysis 6 Offensive Hacking 10 Item Schematics ----------------- None Robot Schematics ------------------ None Fabricated ------------ Nothing Alien Tech Used ----------------- None Achievements -------------- None Challenges ------------ None Game ------ Seed FlakDroneGun Manual? 0 Play Time 00:15:46 Cumulative 634.2 hours Start 2024.02.03 @ 00:28:07 End 2024.02.03 @ 00:43:31 Sessions 1 Manual Loads 0 Difficulty Rogue Special Mode None Game No. 609 Rogue 336 Adventurer 123 Explorer 150 Win Type - Total 25 Types 19/0/4/1/0/0/0/1/0 Lore% 80 Gallery% 91 Achievement% 76 Wizard Run 0 Options --------- ASCII 0 Keyboard 1 Movement Numpad Keybinds 0 Fullscreen 2 Font 18/X11Bold Map View 76x50 Zoom Use 0% Tactical HUD 1 Map Filters NONE Filters NONE Steam 1 RUN: 39e76c92-ef7a-4c31-bf3f-7a2457f4eb80